bitfinex-derivatives/quotes_BTCF0:USTF0_20250119
["timestamp","ask_amount","ask_price","bid_price","bid_amount"]
[1737322702936,0.047737,104870.0,104850.0,0.3608]
[1737322703141,0.047737,104860.0,104850.0,0.3608]
[1737322704950,0.047741,104850.0,104840.0,0.3608]
[1737322707852,0.16973987,104850.0,104840.0,0.3608]
[1737322708039,0.16973987,104850.0,104830.0,0.3608]
[1737322708040,0.12199887,104850.0,104830.0,0.3608]
[1737322708244,0.047746,104840.0,104830.0,0.408549]
[1737322708551,0.047746,104840.0,104830.0,0.769349]
[1737322708747,0.047743,104850.0,104830.0,0.7216]
[1737322708942,0.13281926,104860.0,104840.0,0.3608]
[1737322708943,0.01082039,104860.0,104840.0,0.3608]
[1737322709149,0.047738,104860.0,104850.0,0.408541]
[1737322709354,0.047738,104860.0,104850.0,0.3608]
[1737322709552,0.047741,104850.0,104840.0,0.3608]
[1737322709954,0.047733,104870.0,104850.0,0.047741]
[1737322710162,0.13033592,104880.0,104860.0,0.769335]
[1737322710351,0.13033592,104880.0,104850.0,0.408541]
[1737322710551,0.047737,104860.0,104850.0,0.3608]
[1737322710853,0.047738,104860.0,104850.0,0.408541]
[1737322711053,0.047733,104870.0,104860.0,0.047736]
[1737322711359,0.14131963,104880.0,104860.0,0.3608]
[1737322711555,0.14131963,104880.0,104870.0,0.3608]
[1737322711949,0.2633185,104880.0,104870.0,0.3608]
[1737322712251,0.047732,104870.0,104860.0,0.3608]
[1737322712649,0.047737,104860.0,104840.0,0.3608]
[1737322712850,0.047741,104850.0,104840.0,0.3608]
[1737322713147,0.13298358,104880.0,104840.0,0.7216]
[1737322713359,0.16973587,104860.0,104850.0,0.3608]
[1737322713659,0.16973587,104860.0,104840.0,0.3608]
[1737322713955,0.16973587,104860.0,104840.0,0.408545]
[1737322714159,0.047741,104850.0,104830.0,0.408549]
[1737322714748,0.047741,104850.0,104840.0,0.3608]
[1737322714949,0.040841,104850.0,104840.0,0.3608]
[1737322715254,0.047746,104840.0,104830.0,0.3608]
[1737322716452,0.12199887,104840.0,104820.0,0.3608]
[1737322716653,0.047751,104830.0,104820.0,0.3608]
[1737322716854,0.047751,104830.0,104820.0,0.7216]
[1737322717761,0.047743,104850.0,104840.0,0.047744]
[1737322718063,0.64410492,104860.0,104840.0,0.769344]
[1737322718363,0.67116056,104860.0,104850.0,0.3608]
[1737322718564,0.047741,104850.0,104840.0,0.3608]
[1737322718863,0.047747,104840.0,104830.0,0.3608]
[1737322719562,0.047753,104830.0,104820.0,0.3608]
[1737322720262,0.047747,104840.0,104820.0,0.408552]
[1737322720454,0.047747,104840.0,104830.0,0.3608]
[1737322721058,0.047747,104840.0,104820.0,0.3608]
[1737322721263,0.047751,104830.0,104820.0,0.3608]
[1737322721657,0.047751,104830.0,104810.0,0.40862843]
[1737322721964,0.047755,104820.0,104810.0,0.40862943]
[1737322722163,0.047752,104830.0,104810.0,0.40862943]
[1737322722355,0.047752,104830.0,104820.0,0.3608]
[1737322723261,0.047755,104820.0,104800.0,0.4608]
[1737322723459,0.04776,104810.0,104800.0,0.4608]
[1737322725365,0.13071537,104830.0,104810.0,0.04776]
[1737322725666,0.13071537,104830.0,104820.0,0.3608]
[1737322726765,0.047751,104830.0,104820.0,0.3608]
[1737322729271,0.25271024,104840.0,104820.0,0.769352]
[1737322729574,0.04775,104830.0,104820.0,0.3608]
[1737322731374,0.047757,104820.0,104800.0,1.000463]
[1737322731570,0.04776,104810.0,104800.0,0.4608]
[1737322732572,0.04776,104810.0,104800.0,0.1]
[1737322733462,0.04776,104810.0,104800.0,0.08308459]
[1737322734669,0.92204,104810.0,104800.0,0.08308459]
[1737322735074,0.92204,104810.0,104800.0,0.06871988]
[1737322735272,0.92204,104810.0,104800.0,0.06471988]
[1737322736178,0.56124,104810.0,104800.0,0.06471988]
[1737322736475,0.92204,104810.0,104800.0,0.06471988]
[1737322736970,0.56124,104810.0,104800.0,0.06471988]
[1737322737362,0.56124,104810.0,104800.0,0.42551988]
[1737322737569,0.56124,104810.0,104800.0,0.47328388]
[1737322737768,0.56124,104810.0,104800.0,0.42551988]
[1737322738072,0.51348,104810.0,104800.0,0.47328388]
[1737322738478,0.047756,104820.0,104800.0,0.47328388]
[1737322738677,0.04776,104810.0,104800.0,0.42551988]
[1737322738976,0.16975887,104810.0,104800.0,0.42551988]
[1737322739378,0.16975887,104810.0,104800.0,0.06471988]
[1737322740076,0.16975887,104810.0,104800.0,0.42551988]
[1737322740377,0.16975887,104810.0,104800.0,0.06471988]
[1737322741081,0.53055887,104810.0,104800.0,0.06471988]
[1737322741280,0.16975887,104810.0,104800.0,0.06471988]
[1737322741877,0.04776,104810.0,104800.0,0.47328388]
[1737322742081,0.047756,104820.0,104800.0,0.47328388]
[1737322742881,0.047758,104820.0,104810.0,0.3608]
[1737322743281,0.05855345,104820.0,104810.0,0.3608]
[1737322743586,0.047742,104850.0,104830.0,0.047747]
[1737322743883,0.047742,104850.0,104830.0,0.408547]
[1737322744082,0.047743,104850.0,104830.0,0.408547]
[1737322744284,0.68325687,104860.0,104840.0,0.408544]
[1737322744975,0.68325687,104860.0,104850.0,0.3608]
[1737322745479,0.51352,104860.0,104850.0,0.408541]
[1737322747389,0.68325587,104860.0,104840.0,0.3608]
[1737322747594,0.047741,104850.0,104830.0,0.40855]
[1737322747795,0.047741,104850.0,104840.0,0.3608]
[1737322749394,0.68325587,104860.0,104840.0,0.408546]
[1737322749597,0.51352,104860.0,104850.0,0.047741]
[1737322749794,0.51352,104860.0,104850.0,0.408541]
[1737322750300,0.0122295,104870.0,104850.0,0.408541]
[1737322750600,0.0122295,104870.0,104860.0,0.3608]
[1737322751502,0.0122295,104870.0,104860.0,0.408537]
[1737322751796,0.3608,104900.0,104860.0,0.3608]
[1737322751797,0.68312087,104900.0,104860.0,0.3608]
[1737322752003,0.68312087,104900.0,104880.0,0.3608]
[1737322752401,0.68312087,104900.0,104890.0,0.3608]
[1737322752791,0.36019887,104920.0,104890.0,0.3608]
[1737322753105,0.16970987,104920.0,104910.0,0.3608]
[1737322753295,0.5147506,104930.0,104910.0,0.3608]
[1737322753496,0.5147506,104930.0,104920.0,0.3608]
[1737322753997,0.047687,104970.0,104940.0,0.047699]
[1737322754194,0.16968987,104960.0,104950.0,0.3608]
[1737322754797,0.16968987,104960.0,104950.0,0.32638]
[1737322755005,0.48279887,104960.0,104920.0,0.3608]
[1737322755202,0.12199887,104940.0,104920.0,0.408509]
[1737322755601,0.047705,104930.0,104910.0,0.5012]
[1737322755899,0.047705,104930.0,104910.0,0.2621]
[1737322756106,0.047705,104930.0,104920.0,0.3608]
[1737322756299,0.16971087,104920.0,104890.0,0.6173]
[1737322756498,0.16971087,104920.0,104890.0,0.408522]
[1737322756700,0.047714,104910.0,104890.0,0.408522]
[1737322756898,0.12199887,104920.0,104890.0,0.408522]
[1737322757203,0.16970987,104920.0,104910.0,0.3608]
[1737322757402,0.68290387,104940.0,104910.0,0.3608]
[1737322757598,0.047708,104930.0,104910.0,0.3608]
[1737322758104,0.047708,104930.0,104920.0,0.3608]
[1737322758407,0.047708,104930.0,104910.0,0.3608]
[1737322758797,0.047708,104930.0,104900.0,0.408518]
[1737322759510,0.408508,104930.0,104910.0,0.3608]
[1737322759697,0.48279887,104920.0,104900.0,0.3608]
[1737322759897,0.047714,104910.0,104900.0,0.3608]
[1737322760705,0.48279887,104920.0,104890.0,0.408522]
[1737322760898,1.50977887,104940.0,104900.0,0.408517]
[1737322761205,0.047706,104930.0,104910.0,0.3608]
[1737322761397,0.047706,104930.0,104920.0,0.3608]
[1737322761598,0.047706,104930.0,104910.0,0.3608]
[1737322761801,1.25922681,104940.0,104910.0,0.408513]
[1737322761802,1.13772084,104940.0,104910.0,0.408513]
[1737322762102,1.09001684,104940.0,104900.0,0.3608]
[1737322762304,0.16970887,104920.0,104900.0,0.3608]
[1737322763110,0.12199887,104920.0,104890.0,0.3608]
[1737322763312,0.047717,104910.0,104880.0,0.899127]
[1737322763607,0.12199887,104920.0,104900.0,0.3608]
[1737322763809,0.16970887,104920.0,104900.0,0.3608]
[1737322764506,0.3608,104930.0,104900.0,0.408517]
[1737322764807,0.408509,104930.0,104900.0,0.408517]
[1737322765011,0.3608,104920.0,104900.0,0.408517]
[1737322765213,0.49149903,104930.0,104900.0,0.408517]
[1737322765600,0.13069903,104930.0,104910.0,0.21758542]
[1737322765806,0.13069903,104930.0,104910.0,0.3608]
[1737322766309,0.49149903,104930.0,104900.0,0.408517]
[1737322767009,0.49149903,104930.0,104900.0,0.047717]
[1737322767209,0.13069903,104930.0,104900.0,0.408517]
[1737322767604,0.08299003,104930.0,104910.0,0.3608]
[1737322767908,0.08299003,104930.0,104920.0,0.40851]
[1737322770007,0.08299003,104930.0,104920.0,0.20798445]
[1737322770406,0.08299003,104930.0,104920.0,0.25569445]
[1737322770611,0.05873094,104940.0,104920.0,0.25569445]
[1737322770911,0.19364341,104950.0,104930.0,0.3608]
[1737322771116,0.19364341,104950.0,104940.0,0.53049987]
[1737322771317,0.13831672,104960.0,104940.0,0.48279887]
[1737322771514,0.13831672,104960.0,104950.0,0.408496]
[1737322772003,0.13831672,104960.0,104930.0,0.3646]
[1737322772213,0.047701,104940.0,104930.0,0.3646]
[1737322772603,0.047701,104940.0,104920.0,0.6129]
[1737322772808,0.047701,104940.0,104920.0,0.2521]
[1737322773118,0.047705,104930.0,104910.0,0.3608]
[1737322773311,0.3608,104940.0,104910.0,0.408514]
[1737322773513,0.047702,104940.0,104920.0,0.3608]
[1737322774019,0.047707,104930.0,104910.0,0.408514]
[1737322774319,0.04771,104920.0,104900.0,0.40994737]
[1737322774621,0.04771,104920.0,104900.0,0.04914737]
[1737322774920,0.3608,104930.0,104900.0,0.00142937]
[1737322774921,0.047714,104910.0,104900.0,0.00142937]
[1737322775115,0.408514,104910.0,104900.0,0.00142937]
[1737322776815,0.408514,104910.0,104870.0,0.408531]
[1737322776816,0.49911672,104920.0,104890.0,0.408523]
[1737322777003,0.18602672,104920.0,104900.0,0.408518]
[1737322777204,0.13831672,104920.0,104900.0,0.408518]
[1737322777410,0.13831672,104910.0,104900.0,0.408518]
[1737322777606,0.13831672,104910.0,104900.0,0.53051687]
[1737322778116,0.16598007,104920.0,104910.0,0.047714]
[1737322778319,0.16598007,104920.0,104910.0,0.408514]
[1737322778519,0.21367707,104950.0,104920.0,0.047708]
[1737322778721,0.21367707,104950.0,104920.0,0.408508]
[1737322779919,0.047697,104950.0,104920.0,0.408508]
[1737322780114,1.16177894,104960.0,104920.0,0.408508]
[1737322780516,1.20947094,104960.0,104920.0,0.408508]
[1737322780918,0.3608,104950.0,104920.0,0.408508]
[1737322781225,0.212395,104950.0,104920.0,0.408508]
[1737322782722,0.573195,104950.0,104920.0,0.408508]
[1737322783122,0.573195,104950.0,104930.0,0.047704]
[1737322783322,0.3608,104940.0,104930.0,0.047704]
[1737322783716,0.573195,104950.0,104930.0,0.047704]
[1737322784018,0.52678007,104950.0,104930.0,0.047704]
[1737322784520,0.16598007,104950.0,104940.0,0.3608]
[1737322784726,0.16598007,104950.0,104940.0,0.047701]
[1737322784912,0.16598007,104950.0,104940.0,0.408501]
[1737322785421,0.19364341,104970.0,104960.0,0.047691]
[1737322785621,0.19364341,104970.0,104960.0,0.408491]
[1737322786625,0.04783887,104980.0,104970.0,0.047687]
[1737322786816,0.04783887,104980.0,104970.0,0.408487]
[1737322787928,0.00143044,104980.0,104970.0,0.047687]
[1737322788330,0.047687,104970.0,104950.0,0.408495]
[1737322788629,0.53048587,104970.0,104950.0,0.047695]
[1737322789018,0.408494,104960.0,104940.0,0.17019747]
[1737322789220,0.53049487,104950.0,104940.0,0.17019747]
[1737322789431,0.53049487,104950.0,104930.0,0.17019747]
[1737322789722,0.3608,104940.0,104930.0,0.17019747]
[1737322789923,0.047701,104940.0,104930.0,0.17019747]
[1737322790123,0.408501,104940.0,104930.0,0.17019747]
[1737322790428,0.047705,104930.0,104920.0,0.31546399]
[1737322790618,0.04771,104920.0,104910.0,0.25228009]
[1737322790824,0.99799887,104920.0,104900.0,0.39954645]
[1737322791026,0.53051287,104910.0,104900.0,0.39954645]
[1737322791320,0.12199887,104910.0,104900.0,0.3781742]
[1737322791521,0.666711,104920.0,104900.0,0.3781742]
[1737322791722,0.305911,104920.0,104900.0,0.3781742]
[1737322792025,0.2582,104920.0,104900.0,0.7866932]
[1737322792225,0.53050487,104930.0,104900.0,0.7866932]
[1737322792525,0.53050487,104930.0,104900.0,0.408519]
[1737322792732,0.53050487,104930.0,104900.0,0.047719]
[1737322793421,0.53050487,104930.0,104900.0,0.408519]
[1737322793621,0.53050487,104930.0,104900.0,0.047719]
[1737322793924,0.53050487,104930.0,104900.0,0.408519]
[1737322794127,0.04642358,104920.0,104900.0,0.408519]
[1737322794316,0.04642358,104920.0,104910.0,0.3608]
[1737322794517,0.04642358,104920.0,104900.0,0.408519]
[1737322794718,0.04642358,104920.0,104910.0,0.408514]
[1737322795324,0.2562305,104950.0,104930.0,0.047701]
[1737322795522,0.0014305,104950.0,104940.0,0.047701]
[1737322795729,0.0014305,104950.0,104940.0,0.408501]
[1737322796933,0.0014305,104950.0,104940.0,0.047701]
[1737322798036,0.0014305,104950.0,104940.0,0.408501]
[1737322799325,0.20873513,104980.0,104940.0,0.708501]
[1737322799631,0.19507385,104980.0,104970.0,0.047687]
[1737322800136,0.19507385,104980.0,104970.0,0.408487]
[1737322801231,0.19507385,104980.0,104950.0,0.3608]
[1737322801439,0.04911544,104980.0,104960.0,0.047688]
[1737322801829,0.40991544,104980.0,104960.0,0.047688]
[1737322802643,0.00143044,104980.0,104970.0,0.408487]
[1737322803029,0.00143044,104980.0,104970.0,0.047687]
[1737322803233,0.752273,105000.0,104970.0,0.047687]
[1737322803234,0.1,105000.0,104970.0,0.53048587]
[1737322803539,0.1,105000.0,104990.0,0.408478]
[1737322803927,0.1,105000.0,104990.0,0.047678]
[1737322804130,0.63047187,105000.0,104970.0,0.408484]
[1737322804334,0.1,105000.0,104990.0,0.047678]
[1737322804834,0.508473,105000.0,104990.0,0.047678]
[1737322805039,0.147673,105000.0,104990.0,0.047678]
[1737322805424,0.1,105000.0,104990.0,0.047678]
[1737322805627,0.508475,105000.0,104980.0,0.408482]
[1737322805836,0.1,105000.0,104970.0,0.3608]
[1737322806035,0.26653604,105000.0,104980.0,0.047679]
[1737322806437,0.67501004,105000.0,104980.0,0.047679]
[1737322806635,0.408478,104990.0,104970.0,0.047686]
[1737322806831,0.3608,104990.0,104960.0,0.9833]
[1737322807142,0.74933491,105000.0,104960.0,0.9833]
[1737322807143,0.31420904,105000.0,104980.0,0.04768]
[1737322807328,0.67500904,105000.0,104980.0,0.04768]
[1737322807933,0.16653604,104990.0,104980.0,0.04768]
[1737322808331,0.16653604,104990.0,104980.0,0.40848]
[1737322808931,0.20727052,105020.0,104990.0,0.16967687]
[1737322809128,0.20727052,105020.0,105010.0,0.53046787]
[1737322809334,0.49794021,105030.0,105020.0,0.047664]
[1737322809541,0.49794021,105030.0,105020.0,0.408464]
[1737322809744,0.207999,105030.0,105020.0,0.408464]
[1737322810144,0.22130676,105040.0,105030.0,0.04766]
[1737322810634,0.26896176,105040.0,105030.0,0.04766]
[1737322810837,0.26896176,105040.0,105020.0,0.408463]
[1737322811033,0.047655,105040.0,105020.0,0.408463]
[1737322811238,0.04766,105030.0,105020.0,0.3608]
[1737322811530,0.04766,105030.0,104990.0,0.48279887]
[1737322811531,0.047664,105020.0,104990.0,0.48279887]
[1737322811738,0.047676,105000.0,104980.0,0.657781]
[1737322812041,0.48279887,105010.0,104980.0,0.408481]
[1737322812240,0.047678,104990.0,104980.0,0.047681]
[1737322812541,0.48279887,104990.0,104950.0,0.60832902]
[1737322812742,0.047692,104960.0,104950.0,0.04912402]
[1737322813330,0.408489,104970.0,104950.0,0.04912402]
[1737322813733,0.3608,104970.0,104950.0,0.04912402]
[1737322813942,0.3608,104990.0,104960.0,0.047691]
[1737322814145,0.408479,104990.0,104970.0,0.047685]
[1737322814330,0.408479,104990.0,104970.0,0.047684]
[1737322814837,0.408479,104990.0,104980.0,0.047682]
[1737322815142,0.047674,105000.0,104970.0,0.3608]
[1737322815343,0.047674,105000.0,104990.0,0.047678]
[1737322815344,0.408474,105000.0,104990.0,0.047678]
[1737322815542,0.13865746,105010.0,105000.0,0.047673]
[1737322815933,0.047666,105020.0,105000.0,0.047673]
[1737322816134,0.3608,105010.0,105000.0,0.047673]
[1737322816433,0.14008717,105030.0,105020.0,0.047664]
[1737322816636,0.13865746,105030.0,105020.0,0.408464]
[1737322816835,0.13865746,105030.0,105020.0,0.43231916]
[1737322817035,0.93469295,105060.0,105040.0,0.047654]
[1737322817530,0.57389295,105060.0,105040.0,0.047654]
[1737322817736,1.05669182,105060.0,105020.0,0.408462]
[1737322818045,0.408451,105050.0,105020.0,0.43231408]
[1737322818538,0.408456,105040.0,105020.0,0.07151408]
[1737322818738,0.53045487,105040.0,105000.0,0.64001]
[1737322818947,0.408456,105040.0,105020.0,0.047663]
[1737322819140,0.047656,105040.0,105020.0,0.047663]
[1737322820233,0.3608,105030.0,105010.0,0.3608]
[1737322820441,0.53046287,105020.0,105000.0,0.00761]
[1737322820649,0.408469,105010.0,105000.0,0.00761]
[1737322822145,0.3608,105010.0,105000.0,0.00761]
[1737322822946,0.408469,105010.0,105000.0,0.00761]
[1737322823736,0.408469,105010.0,104950.0,0.94571473]
[1737322823942,0.047683,104980.0,104960.0,0.047691]
[1737322824148,0.047683,104980.0,104960.0,0.10138086]
[1737322824438,0.3608,104970.0,104960.0,0.05368986]
[1737322824641,0.408487,104970.0,104960.0,0.05368986]
[1737322824839,0.408487,104970.0,104960.0,0.05369202]
[1737322825041,0.408487,104970.0,104960.0,0.06131202]
[1737322825241,0.408487,104970.0,104960.0,0.03148312]
[1737322825544,0.63607525,104970.0,104940.0,0.28311973]
[1737322825739,0.89129487,104950.0,104940.0,0.28311973]
[1737322825947,0.89129487,104950.0,104940.0,0.04590473]
[1737322826141,1.19129487,104950.0,104920.0,0.39679991]
[1737322826346,0.89130387,104930.0,104920.0,0.03651634]
[1737322826547,0.89130387,104930.0,104910.0,0.45348562]
[1737322826548,0.04771,104920.0,104910.0,0.3408181]
[1737322826747,0.40851,104920.0,104910.0,0.37827964]
[1737322828052,0.40851,104920.0,104910.0,0.03746154]
[1737322828243,0.65861,104920.0,104910.0,0.00762]
[1737322828751,0.91211,104920.0,104910.0,0.00762]
[1737322829861,0.047714,104910.0,104900.0,0.1]
[1737322830155,0.53051287,104910.0,104900.0,0.12984016]
[1737322830360,0.53051287,104910.0,104900.0,0.12459016]
[1737322831056,0.53051287,104910.0,104900.0,0.13221016]
[1737322831651,0.53051287,104910.0,104900.0,0.10237]
[1737322831848,0.04773,104880.0,104850.0,0.40865324]
[1737322832067,0.04773,104880.0,104850.0,0.01921005]
[1737322832068,0.53053187,104870.0,104850.0,0.01921005]
[1737322832250,0.53053187,104870.0,104850.0,0.06695082]
[1737322833153,0.3608,104860.0,104850.0,0.02237082]
[1737322834450,0.408537,104860.0,104850.0,0.02225858]
[1737322834651,0.408537,104860.0,104850.0,0.00316]
[1737322834652,0.047737,104860.0,104850.0,0.00316]
[1737322834853,0.408537,104860.0,104850.0,0.00316]
[1737322835055,0.047737,104860.0,104850.0,0.00316]
[1737322835254,0.408537,104860.0,104850.0,0.00316]
[1737322835454,0.047737,104860.0,104830.0,0.40997855]
[1737322835661,0.408537,104860.0,104830.0,0.45295816]
[1737322835850,0.408537,104860.0,104830.0,0.45295681]
[1737322836051,0.7563846,104870.0,104840.0,0.3608]
[1737322836352,0.047739,104860.0,104840.0,0.43242121]
[1737322837251,0.12199887,104850.0,104830.0,0.40998055]
[1737322837455,0.16974187,104850.0,104840.0,0.3608]
[1737322837844,0.12199887,104850.0,104840.0,0.3608]
[1737322838048,0.16974087,104850.0,104830.0,0.40998055]
[1737322838259,0.047746,104840.0,104830.0,0.40521219]
[1737322838557,0.12199887,104850.0,104830.0,0.40378164]
[1737322838753,0.16974087,104850.0,104830.0,0.37990295]
[1737322839255,0.047746,104840.0,104830.0,0.37990295]
[1737322840361,0.408546,104840.0,104810.0,0.3608]
[1737322840658,0.560906,104840.0,104810.0,0.37990249]
[1737322841057,0.51316,104840.0,104820.0,0.408553]
[1737322841252,0.51316,104840.0,104820.0,0.42765549]
[1737322842359,0.51316,104840.0,104820.0,0.06685749]
[1737322842554,0.12199887,104830.0,104820.0,0.01910249]
[1737322842751,0.047751,104830.0,104820.0,0.01910249]
[1737322842952,0.60436299,104840.0,104820.0,0.42765749]
[1737322843153,0.48236412,104840.0,104830.0,0.3608]
[1737322843354,0.60436299,104840.0,104830.0,0.0190996]
[1737322844560,0.60436299,104840.0,104820.0,0.408555]
[1737322844760,0.48236412,104840.0,104820.0,0.408555]
[1737322845153,0.43461812,104840.0,104830.0,0.408551]
[1737322845348,0.43461812,104840.0,104820.0,0.3608]
[1737322845557,0.047751,104830.0,104820.0,0.3608]
[1737322845966,0.48236412,104840.0,104820.0,0.408554]
[1737322846166,0.43461812,104840.0,104830.0,0.408551]
[1737322846554,0.48236412,104840.0,104820.0,0.408555]
[1737322847163,0.49591895,104840.0,104820.0,0.408555]
[1737322847360,0.49591895,104840.0,104830.0,0.3608]
[1737322847961,0.80897295,104840.0,104800.0,0.42551988]
[1737322848268,0.047755,104820.0,104800.0,0.42551988]
[1737322848566,0.047755,104820.0,104800.0,0.47328188]
[1737322849867,0.04776,104810.0,104800.0,0.42551988]
[1737322850068,0.53055887,104810.0,104800.0,0.06471988]
[1737322850259,0.16975887,104810.0,104800.0,0.06471988]
[1737322850567,0.53055887,104810.0,104800.0,0.06471988]
[1737322851068,0.16975887,104810.0,104800.0,0.06471988]
[1737322851266,0.04776,104810.0,104800.0,0.06471988]
[1737322852360,0.04776,104810.0,104800.0,0.29145772]
[1737322852562,0.04776,104810.0,104800.0,0.65225772]
[1737322852759,0.04776,104810.0,104800.0,0.29145772]
[1737322853270,0.40856,104810.0,104800.0,0.28006773]
[1737322853972,0.40856,104810.0,104800.0,0.33030372]
[1737322854463,0.04776,104810.0,104800.0,0.33030372]
[1737322854970,0.04776,104810.0,104800.0,0.05332989]
[1737322856277,0.06146936,104810.0,104800.0,0.41412989]
[1737322856473,0.06146936,104810.0,104800.0,0.05332989]
[1737322856665,0.06146936,104810.0,104800.0,0.67681005]
[1737322856966,0.06146936,104810.0,104800.0,1.03761005]
[1737322857167,0.06146936,104810.0,104800.0,0.72457405]
[1737322857870,0.06146936,104810.0,104800.0,0.67681005]
[1737322858063,0.06146936,104810.0,104800.0,0.9446411]
[1737322859064,0.06146936,104810.0,104800.0,1.3054411]
[1737322859371,0.06146936,104810.0,104800.0,0.9924051]
[1737322859774,0.06146936,104810.0,104800.0,0.68382318]
[1737322859977,0.06146936,104810.0,104800.0,1.04462318]
[1737322860170,0.06146936,104810.0,104800.0,0.99685918]
[1737322860368,0.50107978,104810.0,104800.0,0.62077125]
[1737322860566,0.5798902,104810.0,104800.0,0.25173644]
[1737322860877,0.047764,104800.0,104780.0,0.75605332]
[1737322861073,0.07881042,104790.0,104780.0,0.39525332]
[1737322861381,0.48737942,104790.0,104780.0,0.82225894]
[1737322861874,0.12657942,104790.0,104780.0,0.82022473]
[1737322862878,0.12657942,104790.0,104780.0,0.76021586]
[1737322863272,0.12657942,104790.0,104780.0,0.75033145]
[1737322863467,0.48737942,104790.0,104780.0,0.28531562]
[1737322863670,0.12657942,104790.0,104780.0,0.28531562]
[1737322864275,0.12657942,104790.0,104780.0,0.28131562]
[1737322864871,0.047769,104790.0,104780.0,0.34237875]
[1737322865069,0.12657942,104790.0,104780.0,0.34237875]
[1737322865662,0.047769,104790.0,104780.0,0.34237875]
[1737322865865,0.047769,104790.0,104780.0,0.39015175]
[1737322866062,0.12657942,104790.0,104780.0,0.34237875]
[1737322866266,0.14044358,104790.0,104780.0,0.34237875]
[1737322866867,0.50124358,104790.0,104780.0,0.34237875]
[1737322867268,0.14044358,104790.0,104780.0,0.34237875]
[1737322867772,0.06163316,104790.0,104780.0,0.3608]
[1737322867972,0.06163316,104790.0,104780.0,0.408573]
[1737322869172,0.06163316,104790.0,104770.0,0.70327204]
[1737322869470,0.06163316,104790.0,104780.0,0.3608]
[1737322870279,0.06163316,104790.0,104780.0,0.6370634]
[1737322870476,0.01386416,104790.0,104780.0,0.6370634]
[1737322870778,0.12657542,104800.0,104780.0,0.9092634]
[1737322870979,0.12657542,104800.0,104790.0,0.3608]
[1737322871281,0.14008872,104800.0,104790.0,0.3608]
[1737322871481,0.047769,104790.0,104780.0,0.9092634]
[1737322871676,0.047769,104790.0,104780.0,0.633]
[1737322871677,0.12657942,104790.0,104780.0,0.633]
[1737322871881,0.12657942,104790.0,104780.0,0.680773]
[1737322872079,0.047769,104790.0,104780.0,0.680773]
[1737322872480,0.14008972,104800.0,104780.0,0.680773]
[1737322872778,0.0135133,104800.0,104790.0,0.408569]
[1737322872985,0.11042685,104810.0,104790.0,0.408569]
[1737322873179,0.11042685,104810.0,104800.0,0.408564]
[1737322873581,0.11042685,104810.0,104800.0,0.660464]
[1737322873986,0.13720779,104820.0,104810.0,0.04776]
[1737322874181,0.27722797,104820.0,104810.0,0.40856]
[1737322874480,0.27722797,104820.0,104810.0,0.3608]
[1737322874785,0.04776,104810.0,104800.0,0.660463]
[1737322874986,0.09226518,104820.0,104800.0,0.660463]
[1737322875186,0.06121076,104820.0,104810.0,0.40856]
[1737322875681,0.01345476,104820.0,104810.0,0.40856]
[1737322875883,0.12656542,104820.0,104810.0,0.3608]
[1737322876189,0.047764,104800.0,104790.0,0.3608]
[1737322876377,0.047764,104800.0,104780.0,0.90922049]
[1737322876575,0.12657942,104790.0,104780.0,0.54842049]
[1737322876780,0.12657942,104790.0,104780.0,0.90922049]
[1737322876974,0.12657942,104790.0,104780.0,0.633]
[1737322877378,0.047769,104790.0,104780.0,0.680773]
[1737322878091,0.047773,104780.0,104770.0,0.58934078]
[1737322878290,0.12658342,104780.0,104770.0,0.34940441]
[1737322878491,0.047773,104780.0,104770.0,0.34940441]
[1737322878894,0.07881042,104790.0,104770.0,0.39718241]
[1737322879087,0.047773,104790.0,104770.0,0.39718241]
[1737322879288,8.969e-05,104780.0,104770.0,0.39718241]
[1737322879795,0.04786269,104780.0,104770.0,0.39718241]
[1737322880091,0.04786269,104780.0,104770.0,0.34940441]
[1737322880092,0.12658342,104780.0,104770.0,0.34940441]
[1737322880593,0.047778,104770.0,104760.0,0.3608]
[1737322880896,0.047783,104760.0,104750.0,0.90133449]
[1737322881197,0.04787578,104760.0,104750.0,0.85354749]
[1737322881493,0.04787578,104760.0,104750.0,0.22844749]
[1737322881494,0.12659342,104760.0,104750.0,0.22844749]
[1737322881692,0.00369915,104730.0,104710.0,0.85309996]
[1737322881898,0.00369915,104730.0,104710.0,0.90079866]
[1737322881899,0.3608,104720.0,104710.0,0.90079866]
[1737322882194,0.36088017,104720.0,104710.0,0.90079866]
[1737322882382,0.87492001,104730.0,104710.0,0.90079866]
[1737322882383,0.00048001,104730.0,104710.0,0.97960908]
[1737322882583,0.3608,104750.0,104730.0,0.047794]
[1737322882795,0.3608,104740.0,104730.0,0.047796]
[1737322882988,0.3608,104750.0,104730.0,0.12660642]
[1737322883188,0.3608,104770.0,104740.0,0.12851191]
[1737322883391,0.3608,104760.0,104750.0,0.047783]
[1737322883587,0.13720779,104770.0,104760.0,0.047783]
[1737322883789,0.62459621,104770.0,104740.0,0.51790949]
[1737322883993,0.3608,104760.0,104750.0,0.047786]
[1737322884286,0.7216,104760.0,104750.0,0.047786]
[1737322884893,0.84819342,104760.0,104750.0,0.047786]
[1737322885087,0.769383,104760.0,104750.0,0.047786]
[1737322885294,0.48739342,104760.0,104750.0,0.047786]
[1737322885601,0.408583,104760.0,104750.0,0.047786]
[1737322886004,0.48739342,104760.0,104750.0,0.047786]
[1737322886295,0.43961042,104760.0,104750.0,0.047786]
[1737322886603,0.3608,104760.0,104750.0,0.047786]
[1737322887101,0.43961042,104760.0,104750.0,0.047786]
[1737322887301,0.48739642,104760.0,104740.0,0.56570049]
[1737322887607,0.48739742,104750.0,104740.0,0.56570049]
[1737322888203,0.48739742,104750.0,104740.0,0.00190949]
[1737322891188,0.3608,104750.0,104740.0,0.00190949]
[1737322891493,0.3608,104750.0,104740.0,0.04970149]
[1737322891898,0.37746137,104760.0,104740.0,0.48931191]
[1737322892099,0.01666137,104760.0,104750.0,0.047787]
[1737322892304,0.44338,104770.0,104750.0,0.047787]
[1737322892506,0.44338,104770.0,104760.0,0.047783]
[1737322892996,0.52219042,104770.0,104760.0,0.047783]
[1737322893200,0.56996942,104770.0,104750.0,0.047786]